Cogmind - Beta 14 *** ADVENTURER MODE // 2024.10.13 @ 13:18:28 Player: Jefffff Result: Destroyed by B-75 Beast with Heavy Plasma Cannon Performance ------------- Evolutions (3) 1500 Regions Visited (8) 1600 Robots Destroyed (100) 500 Value Destroyed (4288) 4288 Prototype IDs (8) 160 Alien Tech Used (0) 0 Bonus (1671) 1671 TOTAL SCORE: 9719 Bonus ------- High Alert Combat Kills 195 Follower Combat Kills 76 Entered Garrisons 400 Used RIF Installer 1000 Cogmind --------- Core Integrity 0/700 Matter 147/300 Energy 16/100 System Corruption 0% Temperature Cool (12) Movement Core (300) Ox5 Location -7/Garrison Parts ------- > --- POWER (2) -------- (None) > --- PROPULSION (6) --- Aluminum Leg Aluminum Leg Aluminum Leg Carbon-fiber Leg Carbon-fiber Leg > --- UTILITY (3) ------ Improved Heat Sink Medium Storage Unit Advanced Visual Processing Unit > --- WEAPON (2) ------- Particle Gun Heavy Laser > --- INVENTORY (10) --- Structural Scanner Relay Coupler [Duelist] (37) Relay Coupler [Sentry] (27) Relay Coupler [Sentry] (26) Relay Coupler [Sentry] (29) Relay Coupler [Hunter] (21) Relay Coupler [Hunter] (18) Relay Coupler [Heavy] (13) Peak State ------------ > --- POWER ------------ Light Nuclear Core Light Angular Momentum Engine > --- PROPULSION ------- Improved VTOL Module Improved VTOL Module Improved VTOL Module Improved VTOL Module Improved VTOL Module Improved VTOL Module > --- UTILITY ---------- Medium Storage Unit Advanced Visual Processing Unit Hacking Suite > --- WEAPON ----------- Improved Datajack Ripper > --- INVENTORY -------- Structural Scanner Relay Coupler [Duelist] Relay Coupler [Sentry] Relay Coupler [Sentry] Relay Coupler [Sentry] Relay Coupler [Hunter] Relay Coupler [Hunter] Relay Coupler [Heavy] Gauss Rifle Gauss Rifle [Rating: 50] Favorites ----------- Power Reinforced Ion Engine Engine Reinforced Ion Engine Power Core Enhanced Nuclear Core Propulsion Armored Treads Treads Armored Treads Leg Titanium Leg Wheel Compact Wheel Flight Unit Improved VTOL Module Utility Huge Storage Unit Device Structural Scanner Storage Huge Storage Unit Processor Advanced Targeting Computer Hackware Hacking Suite Protection Propulsion Shielding Weapon Gauss Rifle Energy Gun Improved Medium Laser Ballistic Gun Gauss Rifle Ballistic Cannon Assault Cannon Impact Weapon Hammer Slashing Weapon Ripper Special Melee Weapon Improved Datajack Build | -11 -10 -9 -9 -8 -8 -8 -7 -7 ------- Run | Yrd Mat Mat Min Mat Gar Mat Fac Gar Slots Evolved 6 | . . 2 . 2 . . 2 . Power 1 | . . . . . . . 1 . Propulsion 4 | . . 2 . 2 . . . . Utility 1 | . . . . . . . 1 . Weapon . | . . . . . . . . . Parts Attached 104 | 6 5 3 3 49 18 2 1 17 Power 12 | 1 1 . . 5 1 . . 4 Engine 6 | 1 1 . . 3 1 . . . Core 6 | . . . . 2 . . . 4 Reactor . | . . . . . . . . . Propulsion 49 | 2 2 1 2 27 10 . . 5 Treads 11 | . . . . 7 4 . . . Leg 10 | . 1 . . 4 . . . 5 Wheel 20 | 2 1 1 2 14 . . . . Hover . | . . . . . . . . . Flight 8 | . . . . 2 6 . . . Utility 12 | 1 2 . . 2 4 . 1 2 Device 4 | . 1 . . 1 . . 1 1 Storage 4 | 1 1 . . 1 1 . . . Processor 2 | . . . . . 2 . . . Hackware 1 | . . . . . . . . 1 Protection 1 | . . . . . 1 . . . Artifact . | . . . . . . . . . Weapon 31 | 2 . 2 1 15 3 2 . 6 Energy Gun 14 | 1 . 2 . 9 . . . 2 Energy Cannon . | . . . . . . . . . Ballistic Gun 13 | 1 . . 1 4 3 . . 4 Ballistic Cannon 1 | . . . . 1 . . . . Launcher . | . . . . . . . . . Special Weapon . | . . . . . . . . . Impact Weapon 1 | . . . . 1 . . . . Slashing Weapon 1 | . . . . . . 1 . . Piercing Weapon . | . . . . . . . . . Special Melee Weapon 1 | . . . . . . 1 . . Unidentified Prototypes 6 | . . 1 . 5 . . . . Parts Lost 34 | . 1 1 . 15 1 . . 16 Power 6 | . . . . 1 . . . 5 Propulsion 19 | . 1 1 . 11 . . . 6 Utility 2 | . . . . . 1 . . 1 Weapon 7 | . . . . 3 . . . 4 Highest Loss Streak 9 | . 1 1 . 6 1 . . 9 To Critical Strikes . | . . . . . . . . . Average Slot Usage (%) 94 | . 95 77 100 94 100 100 . 72 Engine 6 | . 14 11 11 3 9 9 . 2 Core 2 | . . . . 5 . . . 3 Treads 20 | . . . . 22 41 . . . Leg 6 | . 2 . . 8 10 . . 4 Wheel 14 | . 25 22 44 17 . . . . Flight 4 | . . . . . 2 54 . 29 Device 6 | . 9 11 11 9 2 . . . Storage 9 | . 14 11 11 9 9 9 . 7 Processor 2 | . . . . . 4 9 . 7 Energy Gun 5 | . 14 11 11 7 . . . 2 Ballistic Gun 8 | . 14 11 11 8 9 1 . . Ballistic Cannon 2 | . . . . . 8 . . . Peak Build Rating 50 | 6 8 14 15 38 44 44 44 50 Average Rating 26 | 4 7 10 14 28 32 43 44 34 On Entrance 22 | . 6 8 13 15 31 44 43 44 Naked Turns . | . . . . . . . . . Heaviest Build 100 | 11 87 88 89 100 100 27 24 28 Greatest Support 100 | 26 26 26 58 96 100 30 30 60 Greatest Overweight (x) 9 | . 8 4 1 9 3 . . 5 Average Overweight (x) 1 | . 3 3 1 3 . . . . Largest Inventory Capacity 25 | 8 25 25 25 25 25 10 10 10 Average Capacity 23 | 6 24 25 25 25 24 10 10 10 Most Carried 25 | 3 15 25 25 25 25 10 9 10 Average Carried 20 | 1 8 22 24 23 24 10 9 9 Final Capacity 25 | 8 25 25 25 25 10 10 10 10 Final Carried 25 | 3 15 25 25 25 10 10 9 8 Class Distribution -------------------- 50% | Mutant 39% | Scavenger-Mutant 6% | Bothacker-Sprinter Dominant Class ---------------- Mutant | -10/Materials Mutant | -9/Materials Mutant | -9/Mines Mutant | -8/Materials Scavenger-Mutant | -8/Garrison Bothacker-Sprinter | -8/Materials Bothacker-Sprinter | -7/Factory Hacker-Sprinter | -7/Garrison Resources | -11 -10 -9 -9 -8 -8 -8 -7 -7 ----------- Run | Yrd Mat Mat Min Mat Gar Mat Fac Gar Matter Collected 2333 | 102 242 57 41 956 717 120 . 98 Remotely . | . . . . . . . . . Salvage Created 4128 | . 582 510 56 1500 756 120 . 604 Parts 228 | . 23 38 6 73 52 12 . 24 Haulers Intercepted 7 | . 2 1 . 3 . 1 . . Recyclers Shooed 4 | . . 4 . . . . . . Parts Field Recycled . | . . . . . . . . . Retrieved Matter . | . . . . . . . . . Parts Self-Destructed . | . . . . . . . . . Prevented . | . . . . . . . . . Kills | -11 -10 -9 -9 -8 -8 -8 -7 -7 ------- Run | Yrd Mat Mat Min Mat Gar Mat Fac Gar Combat Hostiles Destroyed 75 | . 5 10 1 26 20 1 . 12 Melee 13 | . . . . . . 1 . 12 Guns 52 | . 5 10 1 26 10 . . . Cannons 10 | . . . . . 10 . . . Classes Destroyed 12 | . 4 4 1 2 1 . . . Worker 1 | . . 1 . . . . . . Builder 3 | . . 2 . . . 1 . . Hauler 7 | . 2 1 . 3 . 1 . . Recycler 5 | . 2 1 . 2 . . . . Operator 2 | . . . . 2 . . . . Watcher 7 | . 3 . . 4 . . . . Swarmer 16 | . . 4 . 5 7 . . . Grunt 38 | . 5 5 . 13 6 . . 9 Brawler 1 | . . . . 1 . . . . Duelist 1 | . . 1 . . . . . . Sentry 16 | . . . 1 7 6 1 . 1 Hunter 3 | . . . . . 1 . . 2 Best Kill Streak 9 | . 5 5 1 9 3 2 . 8 Combat Bots Only 9 | . 1 3 1 9 3 1 . 8 Max Kills in Single Turn 2 | . 1 2 1 2 2 1 . 1 Gunslinging 1 | . . . . 1 . . . . Exploded . | . . . . . . . . . Melee 1 | . . . . . . 1 . 1 Uniques/NPCs Destroyed . | . . . . . . . . . Combat | -11 -10 -9 -9 -8 -8 -8 -7 -7 -------- Run | Yrd Mat Mat Min Mat Gar Mat Fac Gar Hostile Shots Fired 581 | . 17 45 2 234 85 9 . 189 Missed 162 | . 9 16 . 53 20 5 . 59 Damage Taken 5122 | . 122 205 23 2103 704 50 . 1915 Core 1245 | . 51 32 . 387 44 13 . 718 Absorbed by Shields . | . . . . . . . . . Redirected to Shielding 51 | . . . . . 51 . . . Ignored by Resistances 1457 | . 36 69 6 585 207 14 . 540 Regen/Repaired (Parts) 47 | . . . . 47 . . . . Core Remaining (%) 72 | 100 79 . 92 . . 19 . . Volleys Fired 275 | 1 38 40 1 111 65 . . 19 Largest 2 | 2 2 2 2 2 2 . . 2 Hottest 134 | 70 70 85 76 121 72 . . 134 Shots Fired 532 | 2 73 76 2 218 131 . . 30 Gun 467 | 2 73 76 2 218 66 . . 30 Cannon 65 | . . . . . 65 . . . Launcher . | . . . . . . . . . Special . | . . . . . . . . . Kinetic 336 | 1 38 40 1 107 131 . . 18 Thermal 196 | 1 35 36 1 111 . . . 12 Explosive . | . . . . . . . . . Electromagnetic . | . . . . . . . . . Robot Hit Streak 36 | 2 18 14 3 31 36 . . 21 Robot Miss Streak 4 | . 3 4 . 2 2 . . 1 Penetration Max 1 | . . . . 1 1 . . . Secondary Targets 10 | . . 3 . 7 . . . . Max Gunslinging Chain 1 | . . 1 . 1 . . . . Shots Hit Robots 448 | 2 54 52 2 180 76 7 . 75 Core Hits 188 | . 23 30 2 72 38 2 . 21 Critical Kills 2 | . . . . 1 1 . . . Critical Parts Destroyed 3 | . 1 . . 2 . . . . Critical Strikes 26 | . 4 1 . 14 2 . . 5 Burn 15 | . 3 1 . 11 . . . . Destroy 5 | . 1 . . 3 1 . . . Blast 1 | . . . . . 1 . . . Sever 5 | . . . . . . . . 5 Melee Attacks 79 | . . . . . . 19 . 60 Impact . | . . . . . . . . . Slashing 78 | . . . . . . 18 . 60 Piercing . | . . . . . . . . . Sneak Attacks 3 | . . . . . . 2 . 1 Combat Hostiles 1 | . . . . . . . . 1 Follow-up Attacks . | . . . . . . . . . Damage Inflicted 8820 | 19 565 685 32 3258 1600 320 . 2341 Guns 5907 | 19 565 685 32 3258 850 . . 498 Cannons 750 | . . . . . 750 . . . Explosions . | . . . . . . . . . Melee 2163 | . . . . . . 320 . 1843 Ramming . | . . . . . . . . . Kinetic 4215 | 6 206 264 15 1787 1600 . . 337 Thermal 2442 | 13 359 421 17 1471 . . . 161 Explosive . | . . . . . . . . . Electromagnetic . | . . . . . . . . . Impact . | . . . . . . . . . Slashing 2163 | . . . . . . 320 . 1843 Piercing . | . . . . . . . . . Highest Corruption 2 | . . . . 2 2 2 . . Average Corruption 1 | . . . . 1 2 2 . . Corruption Purged . | . . . . . . . . . Corruption Blocked . | . . . . . . . . . Effects 42 | . . . . 10 30 2 . . Message Errors 10 | . . . . 3 7 . . . Matter Fused 8 | . . . . 1 6 1 . . Heat Flow Errors 8 | . . . . 2 5 1 . . Energy Discharges 3 | . . . . . 3 . . . Data Loss (minor) 5 | . . . . 3 2 . . . Data Loss (major) 3 | . . . . . 3 . . . Misfires 2 | . . . . 1 1 . . . Alerts 3 | . . . . . 3 . . . Overload Shots . | . . . . . . . . . Overflow Damage 77 | . . . . . . 69 . 8 Projectiles . | . . . . . . . . . Explosions . | . . . . . . . . . Melee 77 | . . . . . . 69 . 8 Knockbacks 1 | . . . . . 1 . . . Impact . | . . . . . . . . . Kinetic 1 | . . . . . 1 . . . Secondary . | . . . . . . . . . Self-Inflicted Damage . | . . . . . . . . . Shots . | . . . . . . . . . Rammed . | . . . . . . . . . Targets Rammed . | . . . . . . . . . Kicked . | . . . . . . . . . Crushed . | . . . . . . . . . Highest Temperature 685 | 30 114 176 6 685 226 276 3 253 Average Temperature 78 | 18 39 53 4 112 54 121 3 42 Received Heat Transfer 2816 | . 63 72 9 1359 450 27 . 836 Effects 18 | . . . . 18 . . . . Shutdowns 4 | . . . . 4 . . . . Energy Bleed 1 | . . . . 1 . . . . Interference 3 | . . . . 3 . . . . Matter Decay 2 | . . . . 2 . . . . Short Circuit 4 | . . . . 4 . . . . Damage (minor) 1 | . . . . 1 . . . . Damage (major) 2 | . . . . 2 . . . . Damage (core) 1 | . . . . 1 . . . . Siege Activations . | . . . . . . . . . Robots Corrupted . | . . . . . . . . . Combat Hostiles . | . . . . . . . . . Parts Fried . | . . . . . . . . . Impact Corruptions . | . . . . . . . . . Robots Melted . | . . . . . . . . . Combat Hostiles . | . . . . . . . . . Parts Melted 13 | . 4 2 . 7 . . . . Heat Transferred 6882 | 37 1295 1073 37 4107 . . . 333 Parts Sabotaged . | . . . . . . . . . Parts Stolen . | . . . . . . . . . Parts Stripped . | . . . . . . . . . Power Chain Reactions . | . . . . . . . . . Alert | -11 -10 -9 -9 -8 -8 -8 -7 -7 ------- Run | Yrd Mat Mat Min Mat Gar Mat Fac Gar Peak Influence 962 | . 209 274 125 233 962 627 76 519 Initial 403 | . . 17 90 . . 403 76 46 Average 232 | . 97 105 80 67 511 484 76 377 Maximum Alert Level 3 | . 1 1 . 1 3 2 . 2 Low Security (%) 63 | 100 92 79 100 91 19 8 100 14 Level 1 11 | . 7 20 . 8 17 . . 22 Level 2 16 | . . . . . 30 91 . 62 Level 3 8 | . . . . . 31 . . . Level 4 . | . . . . . . . . . Level 5 . | . . . . . . . . . High Security . | . . . . . . . . . Max Security . | . . . . . . . . . Squads Dispatched 7 | . 1 . . 6 . . . . Investigation 1 | . 1 . . . . . . . Extermination . | . . . . . . . . . Reinforcement 3 | . . . . 3 . . . . Assault . | . . . . . . . . . Garrison 3 | . . . . 3 . . . . Intercept . | . . . . . . . . . Searches Triggered . | . . . . . . . . . Construction Impeded . | . . . . . . . . . Haulers Reinforced . | . . . . . . . . . Active Scanning Responses . | . . . . . . . . . Cargo Convoy Interrupts . | . . . . . . . . . Stealth | -11 -10 -9 -9 -8 -8 -8 -7 -7 --------- Run | Yrd Mat Mat Min Mat Gar Mat Fac Gar Distress Signals 7 | . . 3 . 4 . . . . Communications Jammed . | . . . . . . . . . Distress Signals . | . . . . . . . . . Times Spotted 137 | . 12 23 2 47 26 13 . 14 Peak Tracking Total 7 | . 4 7 2 7 3 7 . 7 Tactical Retreats 10 | . 3 1 . 3 . 2 . 1 Traps | -11 -10 -9 -9 -8 -8 -8 -7 -7 ------- Run | Yrd Mat Mat Min Mat Gar Mat Fac Gar Traps Triggered 7 | . 2 . . 2 3 . . . Indirectly . | . . . . . . . . . Trap Hack Attempts 8 | . . . . . . . . 8 Triggered . | . . . . . . . . . Disarmed . | . . . . . . . . . Reprogrammed 2 | . . . . . . . . 2 Reused 2 | . . . . . . . . 2 Traps Extracted . | . . . . . . . . . Installed . | . . . . . . . . . Triggered 2 | . . . . . . . . 2 Machines | -11 -10 -9 -9 -8 -8 -8 -7 -7 ---------- Run | Yrd Mat Mat Min Mat Gar Mat Fac Gar Machines Disabled 9 | . . 1 . 2 5 . . 1 Max in Single Turn 1 | . . 1 . 1 1 . . 1 Garrison Relay 6 | . . . . . 5 . . 1 Machines Repaired . | . . . . . . . . . Machines Dismantled . | . . . . . . . . . Machines Sabotaged . | . . . . . . . . . Overloaded Fab Kills . | . . . . . . . . . Hacking | -11 -10 -9 -9 -8 -8 -8 -7 -7 --------- Run | Yrd Mat Mat Min Mat Gar Mat Fac Gar Machines Accessed 24 | . 3 . . 9 3 5 1 3 Terminals 19 | . 3 . . 5 3 5 . 3 Fabricators . | . . . . . . . . . Repair Stations 1 | . . . . 1 . . . . Recycling Units 1 | . . . . 1 . . . . Scanalyzers 1 | . . . . 1 . . . . Garrison Access 2 | . . . . 1 . . 1 . Total Hacks 69 | . 7 . . 24 3 25 1 9 Successful 46 | . 5 . . 18 2 15 1 5 Failed 23 | . 2 . . 6 1 10 . 4 Catastrophic 3 | . . . . 2 1 . . . Database Lockouts . | . . . . . . . . . Manual 52 | . 6 . . 18 . 25 . 3 Terminals 62 | . 7 . . 18 3 25 . 9 Fabricators . | . . . . . . . . . Repair Stations 2 | . . . . 2 . . . . Recycling Units 1 | . . . . 1 . . . . Scanalyzers 2 | . . . . 2 . . . . Garrison Access 2 | . . . . 1 . . 1 . Terminal Hacks 18 | . 2 . . 5 2 6 . 3 Prototype ID Bank 1 | . 1 . . . . . . . Open Door 1 | . . . . . 1 . . . Level Access Points 1 | . . . . . . 1 . . Emergency Access Points 2 | . . . . . 1 . . 1 Terminal Index 3 | . 1 . . 1 . 1 . . Scanalyzer Index 1 | . . . . . . 1 . . Unreport Threat 7 | . . . . 4 . 3 . . Garrison Registry 1 | . . . . . . . . 1 Patrol Navigation 1 | . . . . . . . . 1 Fabricator Hacks . | . . . . . . . . . Repair Station Hacks 2 | . . . . 2 . . . . Scan Component 1 | . . . . 1 . . . . Repair 1 | . . . . 1 . . . . Recycling Unit Hacks 1 | . . . . 1 . . . . Report Inventory 1 | . . . . 1 . . . . Scanalyzer 2 | . . . . 2 . . . . Insert Component 1 | . . . . 1 . . . . Analyze 1 | . . . . 1 . . . . Garrison Access Hacks 2 | . . . . 1 . . 1 . Unlock Access 2 | . . . . 1 . . 1 . Unauthorized Hacks 21 | . 3 . . 7 . 9 . 2 Terminals 21 | . 3 . . 7 . 9 . 2 Track 2 | . . . . 1 . 1 . . Assimilate 2 | . . . . . . 2 . . Botnet 15 | . 3 . . 5 . 5 . 2 Operators 2 | . . . . 1 . 1 . . Fabricators . | . . . . . . . . . Repair Stations . | . . . . . . . . . Recycling Units . | . . . . . . . . . Scanalyzers . | . . . . . . . . . Garrison Access . | . . . . . . . . . Data Cores Recovered . | . . . . . . . . . Used . | . . . . . . . . . Hacking Detections 19 | . 3 . . 8 2 4 . 2 Full Trace Events 2 | . . . . . . 1 . 1 Feedback Events . | . . . . . . . . . Feedback Blocked . | . . . . . . . . . Robot Schematics Acquired . | . . . . . . . . . Robots Built . | . . . . . . . . . Authchips . | . . . . . . . . . Time . | . . . . . . . . . Total Robot Build Rating . | . . . . . . . . . Part Schematics Acquired 1 | . . . . 1 . . . . Parts Built . | . . . . . . . . . Authchips . | . . . . . . . . . Time . | . . . . . . . . . Total Part Build Rating . | . . . . . . . . . Parts Repaired 1 | . . . . 1 . . . . Time 32 | . . . . 32 . . . . Parts Recycled . | . . . . . . . . . Recycled Matter . | . . . . . . . . . Retrieved Matter . | . . . . . . . . . Retrieved Components . | . . . . . . . . . Parts Scanalyzed 1 | . . . . 1 . . . . Part Schematics Acquired 1 | . . . . 1 . . . . Parts Damaged . | . . . . . . . . . Bothacking | -11 -10 -9 -9 -8 -8 -8 -7 -7 ------------ Run | Yrd Mat Mat Min Mat Gar Mat Fac Gar Used RIF Installer 2 | . . . . . 2 . . . Alert ID Control 1 | . . . . . 1 . . . Robots Hacked 1 | . . . . . . 1 . . Non-combat . | . . . . . . . . . Combat 1 | . . . . . . 1 . . Robot Hacks Applied 1 | . . . . . . 1 . . parse_system 1 | . . . . . . 1 . . Relay Couplers Released 23 | . . . . . 20 . . 3 Machine Destruction 23 | . . . . . 20 . . 3 Fabnet Peak Effective % . | . . . . . . . . . Robots Rewired 3 | . . . . . 3 . . . Allies Hacked . | . . . . . . . . . Hacks Repelled . | . . . . . . . . . Allies | -11 -10 -9 -9 -8 -8 -8 -7 -7 -------- Run | Yrd Mat Mat Min Mat Gar Mat Fac Gar Total Allies 3 | . . . . . 3 . . . Largest Group 2 | . . . . . 2 . . . Highest-Rated Group 51 | . . . . . 51 . . . Highest-Rated Ally 31 | . . . . . 31 . . . Total Orders . | . . . . . . . . . Ally Attacks 19 | . . . . . 19 . . . Total Damage 376 | . . . . . 376 . . . Kills 6 | . . . . . 6 . . . Allies Corrupted . | . . . . . . . . . Allies Melted . | . . . . . . . . . Intel | -11 -10 -9 -9 -8 -8 -8 -7 -7 ------- Run | Yrd Mat Mat Min Mat Gar Mat Fac Gar Robot Analysis Total . | . . . . . . . . . Derelict Logs Recovered 2 | . . . 2 . . . . . Drone Launches . | . . . . . . . . . Drone Recoveries . | . . . . . . . . . Exploration | -11 -10 -9 -9 -8 -8 -8 -7 -7 ------------- Run | Yrd Mat Mat Min Mat Gar Mat Fac Gar Turns Passed 6329 | 53 448 303 587 2497 1761 236 3 441 Spaces Moved 3783 | 47 220 121 503 1111 935 367 6 473 Core 14 | 11 . . . . . . . 3 Treads 1044 | . . . . 233 811 . . . Legs 7 | . . . . . . . . 7 Wheels 1758 | 36 220 121 503 878 . . . . Hover . | . . . . . . . . . Flight 960 | . . . . . 124 367 6 463 Fastest Speed 20 | 50 90 135 110 96 20 20 20 20 Average Speed 122 | 81 141 139 110 171 155 20 20 31 Slowest Speed 490 | 100 200 140 110 490 245 20 20 300 Overloaded Moves . | . . . . . . . . . Propulsion Burnouts . | . . . . . . . . . Robots Hopped . | . . . . . . . . . Cave-ins Triggered . | . . . . . . . . . Exploration Rate (%) 47 | 3 35 18 93 73 82 27 . 45 Regions Visited 8 Branch Regions 1 Pre-discovered Areas 2 | . . . 2 . . . . . Known Exits Taken 3 | . . . . 1 . 1 1 . Unknown Exits Taken 4 | 1 1 1 1 . . . . . Scrap Searched 1 | . . . 1 . . . . . Spaces Dug 12 | . . . . . . 12 . . Terrain Destroyed 15 | . . . . 2 1 12 . . Melee 12 | . . . . . . 12 . . Projectile 3 | . . . . 2 1 . . . AOE . | . . . . . . . . . Terrain Rammed . | . . . . . . . . . Walls Destroyed . | . . . . . . . . . Machines Disabled . | . . . . . . . . . Actions | -11 -10 -9 -9 -8 -8 -8 -7 -7 --------- Run | Yrd Mat Mat Min Mat Gar Mat Fac Gar Total 4862 | 56 291 194 536 1508 1131 500 7 639 Wait 366 | . 12 . 20 128 35 113 . 58 Move 3777 | 46 219 120 502 1111 934 366 6 473 Hop . | . . . . . . . . . Pick Up 110 | 3 14 20 6 51 14 . . 2 Fast Attach 35 | 6 2 1 . 13 . . . 13 Attach 19 | . 1 . 2 11 1 . 1 3 Detach 1 | . . . . . . . . 1 Swap 52 | . 2 2 1 27 17 2 . 1 Drop 107 | . 3 11 4 56 32 . . 1 Fire 275 | 1 38 40 1 111 65 . . 19 Melee 79 | . . . . . . 19 . 60 Ram . | . . . . . . . . . Kick . | . . . . . . . . . Crush . | . . . . . . . . . Escape Stasis 20 | . . . . . 20 . . . Rewire 13 | . . . . . 13 . . . Trap 8 | . . . . . . . . 8 Miscellaneous . | . . . . . . . . . Route ------- -11/Scrapyard -10/Materials -9/Materials -9/Mines (discovered 2 exits: *Mat x2) -8/Materials (discovered 3 exits: *Fac x2 / Gar) -8/Garrison (discovered 3 exits: *Mat x3) -8/Materials (discovered 3 exits: *Fac x3) -7/Factory -7/Garrison (discovered 3 exits: [*Fac x3]) History --------- Turn | Location | Event 3 | -11/Scrapyard | Discovered new exit (range 15) 54 | -11/Scrapyard | Entered Materials 302 | -10/Materials | Build established: Mutant 386 | -10/Materials | Discovered new exit (range 8) 502 | -10/Materials | Entered another Materials area 502 | -9/Materials | Evolved 2 slots: Propulsion x2 591 | -9/Materials | Discovered new exit (range 13) 805 | -9/Materials | Entered Mines 806 | -9/Mines | Learned location of Storage (-7) 883 | -9/Mines | Joined a pair of Derelicts in attacking an 0b10 outpost 955 | -9/Mines | Discovered new exit (range 11) 1205 | -9/Mines | Found a hidden stash of uninstalled traps 1217 | -9/Mines | Learned location of Zion (-7) 1270 | -9/Mines | Discovered new exit (range 6) 1392 | -9/Mines | Entered Materials 1392 | -8/Materials | Evolved 2 slots: Propulsion x2 1393 | -8/Materials | Identified exit to Factory 1470 | -8/Materials | Garrison activated, responded to threat 1500 | -8/Materials | Lost 6 parts (1p5n) 2234 | -8/Materials | Discovered exit to Factory (range 5) 3171 | -8/Materials | Core integrity fell below 50% 3219 | -8/Materials | Destroyed 9 combat bots 3630 | -8/Materials | Build established: Scavenger-Mutant 3732 | -8/Materials | Repaired Rnf. Ion Engine 3889 | -8/Materials | Identified exit to Garrison 3889 | -8/Materials | Entered Garrison 4045 | -8/Garrison | Triggered checkpoint 4213 | -8/Garrison | Garrison Relay disabled 4229 | -8/Garrison | Triggered checkpoint 4327 | -8/Garrison | Triggered checkpoint 4464 | -8/Garrison | Discovered new exit (range 11) 4485 | -8/Garrison | Installed Relay Interface Framework 4519 | -8/Garrison | Triggered checkpoint 4554 | -8/Garrison | Expanded RIF knowledge: Alert ID Control 4613 | -8/Garrison | Garrison Relay disabled 4713 | -8/Garrison | Triggered checkpoint 4841 | -8/Garrison | Triggered checkpoint 4913 | -8/Garrison | Discovered new exit (range 7) 4976 | -8/Garrison | Garrison Relay disabled 5155 | -8/Garrison | Triggered checkpoint 5164 | -8/Garrison | Triggered checkpoint 5269 | -8/Garrison | Triggered checkpoint 5291 | -8/Garrison | Garrison Relay disabled 5380 | -8/Garrison | Discovered new exit (range 12) 5486 | -8/Garrison | Garrison Relay disabled 5650 | -8/Garrison | Entered Materials 5693 | -8/Materials | Core integrity fell below 20% 5886 | -8/Materials | Entered Factory 5886 | -7/Factory | Evolved 2 slots: Power x1, Utility x1 5889 | -7/Factory | Identified exit to Garrison 5889 | -7/Factory | Entered Garrison 5895 | -7/Garrison | Discovered new exit (range 50) 5895 | -7/Garrison | Discovered new exit (range 76) 5895 | -7/Garrison | Discovered new exit (range 50) 5914 | -7/Garrison | Build established: Bothacker-Sprinter 5958 | -7/Garrison | Garrison Relay disabled 6106 | -7/Garrison | Destroyed 8 combat bots 6148 | -7/Garrison | Lost 7 parts (4p2n1w) 6184 | -7/Garrison | Spotted B-75 Beast 6198 | -7/Garrison | Core integrity fell below 50% 6230 | -7/Garrison | Core integrity fell below 20% 6296 | -7/Garrison | Lost 9 parts (1p4n1u3w) 6330 | -7/Garrison | Destroyed by B-75 Beast with Heavy Plasma Cannon Last Messages --------------- 06200_ Ripper destroyed. 06204_ Slug penetrates B-75 Beast. 06219_ Gauss Rifle destroyed. 06223_ Gauss Rifle blasted off. 06223_ Knocked back. 06224_ Acquired 5 matter. 06225_ Acquired Gauss Rifle. 06227_ Slug penetrates B-75 Beast. 06232_ Critical hit (Meltdown: +260). 06232_ Knocked back. 06233_ Slug penetrates B-75 Beast. 06235_ Gauss Rifle destroyed. 06237_ Acquired 9 matter. 06265_ Acquired Hvy. Laser. 06265_ Imp. VTOL Module destroyed. 06269_ Acquired Particle Gun. 06273_ Acquired Aluminum Leg. 06280_ Acquired Imp. Heat Sink. 06283_ Acquired Aluminum Leg. 06290_ Acquired Carbon-fiber Leg. Map ----- +----------------------------------------------------+ | ???# ###???????### ###????????????????????#= | | ???# #???????????# #??????????????????????# | | ???# #############"+########???????????????# | | ???# % #???????????????###### | | #### % % #????????????????????? | | # #++######## < ######### #????????????????????? | | ## + #??????# #???????# #????????????????????? | | ?### #??????##"##???????# #????????????????????? | | ???# #???????# ########## #????????????????????? | | ???# #???????# " #????????????????????? | | ???# #???????############ #????????????????????? | | ???# #??############????# #????????????????????? | | ???# #??#""""""""""#????# #????????????????????? | | ???# #??#"""!!!!"""#????# #????????????????????? | | ???# #??#"" ""#????# #????????????????????? | | ???# #??#"! !"#????# #????????????????????? | | ???# #??#"! !"#????# #????????????????????? | | ???# #??#"! !"#????# #????????????????????? | | ???# #??#"! !"#????# #??????????????????### | | ???# #??#"! !"#????# #??????????????????# | | ???# #??#"! !"#????# #???????????######?# # | | ???# #??#"" ""#????# %#???????###?# #?# # | | ???# #??###### ####????#BB#??????##T###""""###+# | | ???# #########++#########BB######## | | ???# % ; %%! % | | ???# ! @ %[ | | ???################################# ##^ ^ ## | | ?????????????????????????????????### ##^^^^## | | ?????????????????????????????????# | | ?????????????????????????????????# | | ?????????????????????????????????# | | ?????????????????????????????????# | | ?????????????????????????????????### ## ## | | ?????????????????????????########### ## ## | | ?????????????????????????# | | ?????????????????????????# | | ?????????????????????????# ######## | | ?????????????????????????# #??????##+### ##### | | ?????????????????????????# #???????# #?# #???? | | ?????????????????????????# #???????# #?######???? | | ?????????????????????????# ######### #??????????? | | ?????????????????????????# " #??????????? | | ?????????????????????????# ######### #??????????? | | ?????????????????????????# #??????#" #??????????? | | ?????????????????????????# #??????#T #??????????? | | ?????????????????????????#^ #??????#""#??????????? | | ????????????????##########^ #??????####??????????? | | ????????????????# ####?????????????????? | | ????????????????# " #?????????????????? | | ????????????????# ##### #### #?????????????????? | +----------------------------------------------------+ Best States ------------- Heat Dissipation 48 Energy Generation 27 Energy Capacity 300 Matter Stores 300 Matter Capacity 300 Sight Range 20 Terrain Scan Density 10 Resistance: KI 20 Resistance: TH 20 Resistance: EX 20 Resistance: EM 20 Resistance: I 20 Resistance: S 20 Resistance: P 20 Propulsion Shielding 33 Evasion (%) 66 Targeting Accuracy 8 Recoil Reduction 5 Offensive Hacking 20 Item Schematics ----------------- Imp. Hover Unit | -8/Materials | Scanalyzed Robot Schematics ------------------ None Fabricated ------------ Nothing Alien Tech Used ----------------- None Achievements -------------- None Challenges ------------ None Game ------ Seed PhasingSniperShockpuncher Manual? 0 Play Time 00:49:34 Cumulative 177.5 hours Start 2024.10.13 @ 12:23:54 End 2024.10.13 @ 13:18:28 Sessions 1 Manual Loads 0 Difficulty Adventurer Special Mode None Game No. 213 Rogue 0 Adventurer 213 Explorer 0 Win Type - Total 0 Types 0/0/0/0/0/0/0/0/0 Lore% 58 Gallery% 55 Achievement% 45 Wizard Run 0 Options --------- Layout 2 ASCII 0 Keyboard 0 Movement Mouse Keybinds 0 Fullscreen 2 Font 48/Smallcaps Map View 50x44 Zoom Use 0% Tactical HUD 1 Map Filters NONE Filters NONE Steam 1 RUN: 4ae351d6-a2ee-46ab-b484-f2a457adff4b